[Event "RUS-ch Rapid 2021"]
[Site "Sochi"]
[Date "2021.10.12"]
[Round "5.7"]
[White "Petrov, Nikita"]
[Black "Bologan, Victor"]
[Result "1/2-1/2"]
[ECO "E94"]
[WhiteElo "2539"]
[BlackElo "2574"]
[Annotator "ChessBase"]
[PlyCount "114"]
[EventDate "2021.10.12"]
[EventType "swiss"]
[EventCountry "RUS"]
[SourceTitle "playchess.com"]
[Source "ChessBase"]
[SourceQuality "1"]
[TimeControl "900+10"]

1. d4 {[%emt 0:00:34]} Nf6 {[%emt 0:00:05]} 2. c4 {[%emt 0:00:00]} d6 {[%emt 0:
00:10]} 3. Nc3 {[%emt 0:00:05]} Nbd7 {[%emt 0:00:03]} 4. Nf3 {[%emt 0:00:07]}
g6 {[%emt 0:00:04]} 5. e4 {[%emt 0:00:12]} e5 {[%emt 0:00:01]} 6. Be2 {[%emt 0:
00:03]} Bg7 {[%emt 0:00:05]} 7. O-O {[%emt 0:00:14]} O-O {[%emt 0:00:00]} 8.
Be3 {[%emt 0:00:03]} Re8 {[%emt 0:00:23]} 9. d5 {[%emt 0:00:49]} Nh5 {[%emt 0:
00:01]} 10. g3 {[%emt 0:00:31]} Bf8 {[%emt 0:00:01]} 11. Ne1 {[%emt 0:00:02]}
Ng7 {[%emt 0:00:07]} 12. Nd3 {[%emt 0:00:05]} f5 {[%emt 0:00:00]} 13. f3 {
[%emt 0:00:21]} a5 {[%emt 0:00:11]} 14. Qd2 {[%emt 0:00:12]} b6 {[%emt 0:00:16]
} 15. Rae1 {[%emt 0:00:17]} Be7 {[%emt 0:01:32]} 16. Bd1 {[%emt 0:00:08]} Ba6 {
[%emt 0:00:07]} 17. b3 {[%emt 0:00:16]} Nf6 {[%emt 0:00:34]} 18. exf5 {[%emt 0:
00:27]} Nxf5 {[%emt 0:00:21]} 19. Bf2 {[%emt 0:00:13]} Bf8 {[%emt 0:00:10]} 20.
g4 {[%emt 0:01:23]} Nd4 {[%emt 0:02:02]} 21. f4 {[%emt 0:00:50]} Nd7 {[%emt 0:
01:06]} 22. Ne4 {[%emt 0:00:42]} Bg7 {[%emt 0:02:01]} 23. Bxd4 {[%emt 0:02:46]}
exd4 {[%emt 0:00:01]} 24. g5 {[%emt 0:00:03]} b5 {[%emt 0:00:24]} 25. cxb5 {
[%emt 0:00:14]} Bxb5 {[%emt 0:00:07]} 26. Bg4 {[%emt 0:00:00]} Nf8 {[%emt 0:02:
52]} 27. f5 {[%emt 0:01:18]} gxf5 {[%emt 0:00:22]} 28. Bxf5 {[%emt 0:00:07]} a4
{[%emt 0:00:27]} 29. b4 {[%emt 0:00:34]} Kh8 {[%emt 0:00:22]} 30. Rf3 {[%emt 0:
00:20]} c6 {[%emt 0:00:50]} 31. dxc6 {[%emt 0:01:44]} Bxc6 {[%emt 0:00:24]} 32.
Qf4 {[%emt 0:01:10]} Ra7 {[%emt 0:00:37]} 33. Rff1 {[%emt 0:02:10]} d5 {
[%emt 0:01:38]} 34. Nec5 {[%emt 0:00:27]} Rf7 {[%emt 0:00:09]} 35. Rxe8 {
[%emt 0:00:57]} Qxe8 {[%emt 0:00:02]} 36. Re1 {[%emt 0:00:23]} Re7 {[%emt 0:00:
10]} 37. Rxe7 {[%emt 0:00:10]} Qxe7 {[%emt 0:00:12]} 38. Kf2 {[%emt 0:00:00]}
a3 {[%emt 0:00:08]} 39. h4 {[%emt 0:00:06]} Bb5 {[%emt 0:00:13]} 40. h5 {
[%emt 0:00:11]} h6 {[%emt 0:00:27]} 41. gxh6 {[%emt 0:00:31]} Bf6 {[%emt 0:00:
00]} 42. Qf3 {[%emt 0:00:00]} Bc4 {[%emt 0:01:13]} 43. Nf4 {[%emt 0:00:00]} Qe5
{[%emt 0:00:00]} 44. Bd3 {[%emt 0:01:07]} Qe3+ {[%emt 0:01:11]} 45. Qxe3 {
[%emt 0:00:12]} dxe3+ {[%emt 0:00:01]} 46. Kxe3 {[%emt 0:00:10]} Bxa2 {[%emt 0:
00:01]} 47. Ng6+ {[%emt 0:00:13]} Nxg6 {[%emt 0:01:05]} 48. hxg6 {[%emt 0:00:
01]} Bg5+ {[%emt 0:00:01]} 49. Kd4 {[%emt 0:00:12]} Bxh6 {[%emt 0:00:02]} 50.
Ne6 {[%emt 0:00:01]} Bd2 {[%emt 0:00:38]} 51. b5 {[%emt 0:00:18]} Ba5 {[%emt 0:
00:02]} 52. Kc5 {[%emt 0:00:14]} Bc4 {[%emt 0:00:28]} 53. Bb1 {[%emt 0:00:01]}
a2 {[%emt 0:00:17]} 54. Bxa2 {[%emt 0:00:01]} Bxa2 {[%emt 0:00:00]} 55. b6 {
[%emt 0:00:10]} Bxb6+ {[%emt 0:00:13]} 56. Kxb6 {[%emt 0:00:01]} Kg8 {[%emt 0:
00:02]} 57. Kc5 {[%emt 0:00:01]} Bb1 {[%emt 0:00:03]} 1/2-1/2

[Event "RUS-ch Rapid 2021"]
[Site "Sochi"]
[Date "2021.10.12"]
[Round "5.8"]
[White "Tsydypov, Zhamsaran"]
[Black "Nesterov, Arseniy"]
[Result "1-0"]
[ECO "C65"]
[WhiteElo "2526"]
[BlackElo "2514"]
[Annotator "ChessBase"]
[PlyCount "83"]
[EventDate "2021.10.12"]
[EventType "swiss"]
[EventCountry "RUS"]
[SourceTitle "playchess.com"]
[Source "ChessBase"]
[SourceQuality "1"]
[TimeControl "900+10"]

1. e4 {[%emt 0:00:00]} e5 {[%emt 0:00:04]} 2. Nf3 {[%emt 0:00:03]} Nc6 {
[%emt 0:00:02]} 3. Bb5 {[%emt 0:00:38]} Nf6 {[%emt 0:00:52]} 4. d3 {[%emt 0:00:
07]} Bc5 {[%emt 0:00:00]} 5. c3 {[%emt 0:00:02]} O-O {[%emt 0:00:09]} 6. O-O {
[%emt 0:00:14]} d6 {[%emt 0:00:02]} 7. Nbd2 {[%emt 0:00:07]} Bb6 {[%emt 0:00:
15]} 8. Ba4 {[%emt 0:00:33]} Ne7 {[%emt 0:00:09]} 9. h3 {[%emt 0:00:54]} Ng6 {
[%emt 0:00:08]} 10. Re1 {[%emt 0:00:13]} c6 {[%emt 0:00:31]} 11. d4 {[%emt 0:
00:14]} h6 {[%emt 0:00:27]} 12. b4 {[%emt 0:01:07]} Be6 {[%emt 0:00:54]} 13.
Bb2 {[%emt 0:00:18]} Nf4 {[%emt 0:02:54]} 14. Re3 {[%emt 0:00:21]} Bxh3 {
[%emt 0:01:07]} 15. gxh3 {[%emt 0:00:28]} Nxh3+ {[%emt 0:00:04]} 16. Kf1 {
[%emt 0:00:23]} Ng4 {[%emt 0:00:00]} 17. Re2 {[%emt 0:02:48]} f5 {[%emt 0:01:
23]} 18. Bb3+ {[%emt 0:00:33]} Kh8 {[%emt 0:00:04]} 19. exf5 {[%emt 0:00:31]}
Rxf5 {[%emt 0:00:03]} 20. Be6 {[%emt 0:00:12]} Nhxf2 {[%emt 0:03:03]} 21. Bxf5
{[%emt 0:01:28]} Nxd1 {[%emt 0:00:02]} 22. Rxd1 {[%emt 0:00:00]} Nf6 {[%emt 0:
00:07]} 23. dxe5 {[%emt 0:00:33]} Nh5 {[%emt 0:01:04]} 24. Ne4 {[%emt 0:00:41]}
d5 {[%emt 0:00:03]} 25. Rh2 {[%emt 0:00:32]} Qe8 {[%emt 0:02:37]} 26. Nd6 {
[%emt 0:01:26]} Ng3+ {[%emt 0:00:03]} 27. Kg2 {[%emt 0:00:00]} Nxf5 {[%emt 0:
00:00]} 28. Nxe8 {[%emt 0:00:05]} Ne3+ {[%emt 0:00:00]} 29. Kg3 {[%emt 0:01:43]
} Nxd1 {[%emt 0:00:02]} 30. Nd6 {[%emt 0:00:00]} Rf8 {[%emt 0:00:14]} 31. Re2 {
[%emt 0:00:13]} Ne3 {[%emt 0:02:14]} 32. Bc1 {[%emt 0:00:33]} Nf5+ {[%emt 0:00:
00]} 33. Nxf5 {[%emt 0:00:09]} Rxf5 {[%emt 0:00:01]} 34. e6 {[%emt 0:00:12]}
Rf8 {[%emt 0:00:13]} 35. e7 {[%emt 0:00:11]} Re8 {[%emt 0:00:41]} 36. Bf4 {
[%emt 0:00:42]} Kg8 {[%emt 0:00:02]} 37. Bd6 {[%emt 0:00:03]} Kf7 {[%emt 0:00:
02]} 38. Nd4 {[%emt 0:00:24]} Bxd4 {[%emt 0:00:04]} 39. cxd4 {[%emt 0:00:00]}
b6 {[%emt 0:00:09]} 40. Rf2+ {[%emt 0:00:13]} Ke6 {[%emt 0:00:00]} 41. Rf8 {
[%emt 0:00:02]} Kd7 {[%emt 0:00:00]} 42. Kf4 {[%emt 0:00:08]} 1-0

[Event "RUS-ch Rapid 2021"]
[Site "Sochi"]
[Date "2021.10.12"]
[Round "5.9"]
[White "Kokarev, Dmitry"]
[Black "Zubritskiy, Artyom"]
[Result "1/2-1/2"]
[ECO "B29"]
[WhiteElo "2579"]
[BlackElo "2442"]
[Annotator "ChessBase"]
[PlyCount "52"]
[EventDate "2021.10.12"]
[EventType "swiss"]
[EventCountry "RUS"]
[SourceTitle "playchess.com"]
[Source "ChessBase"]
[SourceQuality "1"]
[TimeControl "900+10"]

1. e4 {[%emt 0:00:00]} c5 {[%emt 0:00:00]} 2. Nf3 {[%emt 0:00:07]} Nf6 {
[%emt 0:00:10]} 3. e5 {[%emt 0:00:02]} Nd5 {[%emt 0:00:00]} 4. Nc3 {[%emt 0:00:
00]} e6 {[%emt 0:00:00]} 5. Nxd5 {[%emt 0:00:09]} exd5 {[%emt 0:00:00]} 6. d4 {
[%emt 0:00:00]} Nc6 {[%emt 0:00:00]} 7. dxc5 {[%emt 0:00:00]} Bxc5 {[%emt 0:00:
00]} 8. Qxd5 {[%emt 0:00:00]} d6 {[%emt 0:02:32]} 9. exd6 {[%emt 0:00:07]} Qb6
{[%emt 0:00:00]} 10. Qe4+ {[%emt 0:00:02]} Be6 {[%emt 0:00:04]} 11. Qh4 {
[%emt 0:00:06]} f6 {[%emt 0:02:42]} 12. Bd3 {[%emt 0:00:33]} g5 {[%emt 0:02:04]
} 13. Qh5+ {[%emt 0:00:26]} Bf7 {[%emt 0:00:13]} 14. d7+ {[%emt 0:00:12]} Ke7 {
[%emt 0:00:01]} 15. Qh6 {[%emt 0:00:18]} Bxf2+ {[%emt 0:00:31]} 16. Kd1 {
[%emt 0:02:50]} Nb4 {[%emt 0:03:03]} 17. Bd2 {[%emt 0:00:37]} Nxd3 {[%emt 0:00:
04]} 18. cxd3 {[%emt 0:00:00]} Rad8 {[%emt 0:03:57]} 19. Bc3 {[%emt 0:00:58]}
Rxd7 {[%emt 0:00:03]} 20. Kc2 {[%emt 0:00:06]} Rc8 {[%emt 0:01:15]} 21. Rhf1 {
[%emt 0:00:33]} Qa6 {[%emt 0:01:33]} 22. Qxh7 {[%emt 0:02:58]} Qa4+ {[%emt 0:
00:01]} 23. Kd2 {[%emt 0:00:02]} Qf4+ {[%emt 0:00:11]} 24. Kc2 {[%emt 0:00:00]}
Qa4+ {[%emt 0:00:06]} 25. Kd2 {[%emt 0:00:00]} Qf4+ {[%emt 0:00:09]} 26. Kc2 {
[%emt 0:00:00]} Qa4+ {[%emt 0:00:15]} 1/2-1/2

[Event "RUS-ch Rapid 2021"]
[Site "Sochi"]
[Date "2021.10.12"]
[Round "5.13"]
[White "Bryakin, Mikhail"]
[Black "Kezin, Roman"]
[Result "1-0"]
[ECO "E04"]
[WhiteElo "2498"]
[BlackElo "2492"]
[Annotator "ChessBase"]
[PlyCount "91"]
[EventDate "2021.10.12"]
[EventType "swiss"]
[EventCountry "RUS"]
[SourceTitle "playchess.com"]
[Source "ChessBase"]
[SourceQuality "1"]
[TimeControl "900+10"]

1. d4 {[%emt 0:00:00]} d5 {[%emt 0:00:00]} 2. c4 {[%emt 0:00:11]} e6 {[%emt 0:
00:01]} 3. Nf3 {[%emt 0:00:00]} Nf6 {[%emt 0:00:06]} 4. g3 {[%emt 0:00:00]}
dxc4 {[%emt 0:00:47]} 5. Bg2 {[%emt 0:00:02]} c6 {[%emt 0:00:00]} 6. Ne5 {
[%emt 0:00:35]} Bb4+ {[%emt 0:00:01]} 7. Bd2 {[%emt 0:00:25]} Be7 {[%emt 0:00:
00]} 8. e3 {[%emt 0:00:14]} b5 {[%emt 0:00:00]} 9. b3 {[%emt 0:01:00]} cxb3 {
[%emt 0:00:23]} 10. axb3 {[%emt 0:00:05]} Bb7 {[%emt 0:00:23]} 11. O-O {
[%emt 0:01:39]} O-O {[%emt 0:00:01]} 12. Nc3 {[%emt 0:03:04]} a6 {[%emt 0:04:
47]} 13. Ne4 {[%emt 0:00:42]} Nxe4 {[%emt 0:02:38]} 14. Bxe4 {[%emt 0:00:04]}
Bd6 {[%emt 0:00:00]} 15. Ba5 {[%emt 0:01:33]} Qe7 {[%emt 0:00:16]} 16. Nd3 {
[%emt 0:00:49]} Nd7 {[%emt 0:01:37]} 17. Rc1 {[%emt 0:01:45]} Rac8 {[%emt 0:00:
23]} 18. f4 {[%emt 0:01:14]} Nf6 {[%emt 0:05:53]} 19. Bg2 {[%emt 0:00:03]} c5 {
[%emt 0:00:47]} 20. Bxb7 {[%emt 0:01:47]} Qxb7 {[%emt 0:00:01]} 21. dxc5 {
[%emt 0:00:00]} Be7 {[%emt 0:00:00]} 22. Qf3 {[%emt 0:00:25]} Qxf3 {[%emt 0:00:
26]} 23. Rxf3 {[%emt 0:00:01]} Bd8 {[%emt 0:00:18]} 24. Be1 {[%emt 0:01:09]}
Ne4 {[%emt 0:00:03]} 25. b4 {[%emt 0:00:05]} Bf6 {[%emt 0:00:08]} 26. Nf2 {
[%emt 0:00:09]} Nxf2 {[%emt 0:00:09]} 27. Rxf2 {[%emt 0:00:02]} Rfd8 {[%emt 0:
00:05]} 28. Ra2 {[%emt 0:00:02]} Rc6 {[%emt 0:00:11]} 29. Kf2 {[%emt 0:00:31]}
Rd3 {[%emt 0:00:17]} 30. Ke2 {[%emt 0:00:00]} Rb3 {[%emt 0:00:00]} 31. Rd1 {
[%emt 0:00:47]} Kf8 {[%emt 0:00:27]} 32. Rd7 {[%emt 0:00:12]} g6 {[%emt 0:00:
12]} 33. Bd2 {[%emt 0:01:02]} Rb2 {[%emt 0:00:08]} 34. Rxb2 {[%emt 0:00:14]}
Bxb2 {[%emt 0:00:00]} 35. Ra7 {[%emt 0:00:11]} h5 {[%emt 0:00:08]} 36. Kd3 {
[%emt 0:00:01]} Kg7 {[%emt 0:00:20]} 37. Bc3+ {[%emt 0:00:30]} Bxc3 {[%emt 0:
00:01]} 38. Kxc3 {[%emt 0:00:00]} Kf6 {[%emt 0:00:08]} 39. Kd4 {[%emt 0:00:02]}
Kg7 {[%emt 0:00:24]} 40. Ke5 {[%emt 0:00:03]} Kf8 {[%emt 0:00:11]} 41. Kf6 {
[%emt 0:00:07]} e5+ {[%emt 0:00:00]} 42. Kxe5 {[%emt 0:00:01]} Re6+ {[%emt 0:
00:00]} 43. Kd4 {[%emt 0:00:00]} f5 {[%emt 0:00:17]} 44. Kd5 {[%emt 0:00:06]}
Re4 {[%emt 0:00:03]} 45. c6 {[%emt 0:00:07]} Rc4 {[%emt 0:00:13]} 46. Kd6 {
[%emt 0:00:21]} 1-0

[Event "RUS-ch Rapid 2021"]
[Site "Sochi"]
[Date "2021.10.12"]
[Round "5.14"]
[White "Gochelashvili, David"]
[Black "Afanasiev, Nikita"]
[Result "1/2-1/2"]
[ECO "B07"]
[WhiteElo "2400"]
[BlackElo "2560"]
[Annotator "ChessBase"]
[PlyCount "91"]
[EventDate "2021.10.12"]
[EventType "swiss"]
[EventCountry "RUS"]
[SourceTitle "playchess.com"]
[Source "ChessBase"]
[SourceQuality "1"]
[TimeControl "900+10"]

1. e4 {[%emt 0:00:00]} d6 {[%emt 0:00:06]} 2. d4 {[%emt 0:00:08]} Nf6 {[%emt 0:
00:00]} 3. Nc3 {[%emt 0:00:03]} e5 {[%emt 0:00:09]} 4. Nge2 {[%emt 0:00:08]} c6
{[%emt 0:00:00]} 5. a4 {[%emt 0:00:30]} Be7 {[%emt 0:00:14]} 6. g3 {[%emt 0:00:
04]} Bg4 {[%emt 0:00:33]} 7. Bg2 {[%emt 0:00:00]} O-O {[%emt 0:03:22]} 8. h3 {
[%emt 0:00:19]} Bxe2 {[%emt 0:01:43]} 9. Nxe2 {[%emt 0:00:05]} exd4 {[%emt 0:
00:23]} 10. Nxd4 {[%emt 0:00:07]} Qa5+ {[%emt 0:00:34]} 11. Qd2 {[%emt 0:03:05]
} Qxd2+ {[%emt 0:00:33]} 12. Bxd2 {[%emt 0:00:01]} Re8 {[%emt 0:00:04]} 13.
O-O-O {[%emt 0:00:18]} Bf8 {[%emt 0:00:05]} 14. Rhe1 {[%emt 0:00:13]} Nbd7 {
[%emt 0:00:02]} 15. a5 {[%emt 0:01:05]} Nc5 {[%emt 0:00:35]} 16. f3 {[%emt 0:
00:17]} a6 {[%emt 0:00:56]} 17. Bg5 {[%emt 0:02:34]} Ncd7 {[%emt 0:02:26]} 18.
Nf5 {[%emt 0:00:05]} Re6 {[%emt 0:00:19]} 19. c4 {[%emt 0:03:37]} g6 {[%emt 0:
01:07]} 20. Nd4 {[%emt 0:01:20]} Re5 {[%emt 0:01:12]} 21. Bd2 {[%emt 0:00:01]}
Rae8 {[%emt 0:00:14]} 22. g4 {[%emt 0:01:02]} R5e7 {[%emt 0:00:39]} 23. Kc2 {
[%emt 0:01:27]} Bg7 {[%emt 0:00:56]} 24. Bc3 {[%emt 0:00:22]} Nc5 {[%emt 0:01:
29]} 25. b3 {[%emt 0:00:14]} Ne6 {[%emt 0:00:36]} 26. Nxe6 {[%emt 0:00:22]}
Rxe6 {[%emt 0:00:02]} 27. Rd2 {[%emt 0:00:10]} Bh6 {[%emt 0:00:10]} 28. Rdd1 {
[%emt 0:00:16]} Bf4 {[%emt 0:00:08]} 29. h4 {[%emt 0:00:23]} h6 {[%emt 0:00:33]
} 30. Bh3 {[%emt 0:00:18]} g5 {[%emt 0:00:20]} 31. hxg5 {[%emt 0:00:00]} hxg5 {
[%emt 0:00:00]} 32. Rh1 {[%emt 0:00:01]} Nd7 {[%emt 0:00:18]} 33. Bf1 {[%emt 0:
00:10]} Kf8 {[%emt 0:00:10]} 34. b4 {[%emt 0:00:14]} Ke7 {[%emt 0:00:17]} 35.
Be2 {[%emt 0:00:27]} Be5 {[%emt 0:00:08]} 36. Bd2 {[%emt 0:00:06]} Rg6 {
[%emt 0:00:07]} 37. Be3 {[%emt 0:00:32]} Rh8 {[%emt 0:00:00]} 38. Rxh8 {
[%emt 0:00:32]} Bxh8 {[%emt 0:00:00]} 39. Rh1 {[%emt 0:00:00]} Be5 {[%emt 0:00:
11]} 40. c5 {[%emt 0:00:05]} Bf4 {[%emt 0:00:14]} 41. Bd4 {[%emt 0:00:13]} Be5
{[%emt 0:00:14]} 42. Be3 {[%emt 0:00:03]} Bf4 {[%emt 0:00:13]} 43. Bd4 {
[%emt 0:00:26]} Be5 {[%emt 0:00:19]} 44. Be3 {[%emt 0:00:03]} Bf4 {[%emt 0:00:
14]} 45. Bd4 {[%emt 0:00:37]} Be5 {[%emt 0:00:11]} 46. Bf2 {[%emt 0:00:30]}
1/2-1/2

[Event "RUS-ch Rapid 2021"]
[Site "Sochi"]
[Date "2021.10.12"]
[Round "5.15"]
[White "Iljiushenok, Ilia"]
[Black "Makarian, Rudik"]
[Result "1-0"]
[ECO "B90"]
[WhiteElo "2554"]
[BlackElo "2470"]
[Annotator "ChessBase"]
[PlyCount "45"]
[EventDate "2021.10.12"]
[EventType "swiss"]
[EventCountry "RUS"]
[SourceTitle "playchess.com"]
[Source "ChessBase"]
[SourceQuality "1"]
[TimeControl "900+10"]

1. e4 {[%emt 0:00:04]} c5 {[%emt 0:00:00]} 2. Nf3 {[%emt 0:00:02]} d6 {[%emt 0:
00:11]} 3. d4 {[%emt 0:00:03]} cxd4 {[%emt 0:00:03]} 4. Nxd4 {[%emt 0:00:00]}
Nf6 {[%emt 0:00:00]} 5. Nc3 {[%emt 0:00:00]} a6 {[%emt 0:00:00]} 6. Rg1 {
[%emt 0:00:00]} h5 {[%emt 0:00:00]} 7. Bg5 {[%emt 0:00:09]} Nbd7 {[%emt 0:00:
20]} 8. Qd2 {[%emt 0:00:21]} b5 {[%emt 0:00:47]} 9. Bd3 {[%emt 0:00:52]} Bb7 {
[%emt 0:00:15]} 10. O-O-O {[%emt 0:00:00]} Nc5 {[%emt 0:01:30]} 11. Rge1 {
[%emt 0:00:23]} e6 {[%emt 0:00:53]} 12. Nd5 {[%emt 0:02:30]} Rc8 {[%emt 0:00:
00]} 13. Kb1 {[%emt 0:00:56]} Nxd3 {[%emt 0:01:48]} 14. Qxd3 {[%emt 0:01:03]}
exd5 {[%emt 0:00:13]} 15. exd5+ {[%emt 0:05:03]} Kd7 {[%emt 0:00:00]} 16. a4 {
[%emt 0:00:26]} Qb6 {[%emt 0:01:17]} 17. axb5 {[%emt 0:00:27]} Nxd5 {[%emt 0:
00:34]} 18. c4 {[%emt 0:00:59]} Nb4 {[%emt 0:00:07]} 19. Qb3 {[%emt 0:00:42]}
Qc5 {[%emt 0:00:39]} 20. bxa6 {[%emt 0:00:54]} Bxa6 {[%emt 0:00:31]} 21. Qa4+ {
[%emt 0:00:47]} Kc7 {[%emt 0:03:18]} 22. Bd2 {[%emt 0:00:00]} Rb8 {[%emt 0:00:
00]} 23. Bxb4 {[%emt 0:00:00]} 1-0

[Event "RUS-ch Rapid 2021"]
[Site "Sochi"]
[Date "2021.10.12"]
[Round "5.16"]
[White "Klukin, Kirill"]
[Black "Khanin, Semen"]
[Result "1/2-1/2"]
[ECO "D05"]
[WhiteElo "2346"]
[BlackElo "2521"]
[Annotator "ChessBase"]
[PlyCount "89"]
[EventDate "2021.10.12"]
[EventType "swiss"]
[EventCountry "RUS"]
[SourceTitle "playchess.com"]
[Source "ChessBase"]
[SourceQuality "1"]
[TimeControl "900+10"]

1. d4 {[%emt 0:00:00]} Nf6 {[%emt 0:00:52]} 2. Nf3 {[%emt 0:00:09]} e6 {
[%emt 0:00:00]} 3. e3 {[%emt 0:00:00]} c5 {[%emt 0:00:07]} 4. Bd3 {[%emt 0:00:
03]} d5 {[%emt 0:00:07]} 5. b3 {[%emt 0:00:14]} Be7 {[%emt 0:00:32]} 6. Bb2 {
[%emt 0:00:00]} O-O {[%emt 0:00:00]} 7. O-O {[%emt 0:00:06]} b6 {[%emt 0:00:02]
} 8. Nbd2 {[%emt 0:00:18]} Bb7 {[%emt 0:00:02]} 9. Qe2 {[%emt 0:00:15]} Nbd7 {
[%emt 0:00:03]} 10. Ne5 {[%emt 0:00:16]} Qc7 {[%emt 0:00:35]} 11. f4 {[%emt 0:
01:49]} Ne4 {[%emt 0:00:04]} 12. Nxd7 {[%emt 0:01:05]} Qxd7 {[%emt 0:00:02]}
13. Nxe4 {[%emt 0:00:12]} dxe4 {[%emt 0:00:00]} 14. Bc4 {[%emt 0:00:02]} Bf6 {
[%emt 0:02:14]} 15. Rad1 {[%emt 0:00:19]} Qe7 {[%emt 0:00:54]} 16. f5 {[%emt 0:
01:48]} exf5 {[%emt 0:00:16]} 17. Rxf5 {[%emt 0:00:04]} cxd4 {[%emt 0:01:20]}
18. Bxd4 {[%emt 0:00:20]} Bxd4 {[%emt 0:00:00]} 19. Rxd4 {[%emt 0:00:01]} Kh8 {
[%emt 0:00:16]} 20. Qd2 {[%emt 0:00:37]} Bc6 {[%emt 0:01:37]} 21. Bd5 {[%emt 0:
01:38]} Bxd5 {[%emt 0:00:10]} 22. Rfxd5 {[%emt 0:00:00]} f5 {[%emt 0:01:02]}
23. Rd7 {[%emt 0:00:15]} Qg5 {[%emt 0:00:00]} 24. R4d5 {[%emt 0:00:33]} a5 {
[%emt 0:01:17]} 25. a4 {[%emt 0:00:04]} h5 {[%emt 0:00:38]} 26. h3 {[%emt 0:02:
36]} Rf6 {[%emt 0:00:16]} 27. Qf2 {[%emt 0:00:27]} h4 {[%emt 0:00:12]} 28. Re7
{[%emt 0:02:54]} Raf8 {[%emt 0:00:19]} 29. Qf4 {[%emt 0:00:33]} Qxf4 {[%emt 0:
02:12]} 30. exf4 {[%emt 0:00:03]} Rc8 {[%emt 0:00:03]} 31. c4 {[%emt 0:00:00]}
Rcc6 {[%emt 0:00:12]} 32. Ree5 {[%emt 0:01:00]} Rcd6 {[%emt 0:01:24]} 33. Rxd6
{[%emt 0:01:43]} Rxd6 {[%emt 0:00:03]} 34. Rxf5 {[%emt 0:00:00]} Rd2 {[%emt 0:
02:30]} 35. Re5 {[%emt 0:00:07]} Rb2 {[%emt 0:00:03]} 36. Rb5 {[%emt 0:00:57]}
e3 {[%emt 0:00:00]} 37. Kf1 {[%emt 0:00:01]} Rf2+ {[%emt 0:00:05]} 38. Ke1 {
[%emt 0:00:00]} Rxg2 {[%emt 0:00:13]} 39. Rxb6 {[%emt 0:00:02]} Rh2 {[%emt 0:
00:03]} 40. Ra6 {[%emt 0:00:48]} Rxh3 {[%emt 0:00:24]} 41. Rxa5 {[%emt 0:00:00]
} g6 {[%emt 0:00:07]} 42. c5 {[%emt 0:00:00]} Rh1+ {[%emt 0:00:46]} 43. Ke2 {
[%emt 0:00:04]} Rc1 {[%emt 0:00:02]} 44. Ra8+ {[%emt 0:00:38]} Kg7 {[%emt 0:00:
00]} 45. Ra7+ {[%emt 0:00:03]} 1/2-1/2

[Event "RUS-ch Rapid 2021"]
[Site "Sochi"]
[Date "2021.10.12"]
[Round "5.17"]
[White "Demidov, Mikhail"]
[Black "Usmanov, Vasily"]
[Result "1-0"]
[ECO "E11"]
[WhiteElo "2551"]
[BlackElo "2447"]
[Annotator "ChessBase"]
[PlyCount "53"]
[EventDate "2021.10.12"]
[EventType "swiss"]
[EventCountry "RUS"]
[SourceTitle "playchess.com"]
[Source "ChessBase"]
[SourceQuality "1"]
[TimeControl "900+10"]

1. d4 {[%emt 0:00:09]} d5 {[%emt 0:00:06]} 2. Nf3 {[%emt 0:00:00]} Nf6 {
[%emt 0:00:10]} 3. Bf4 {[%emt 0:00:01]} Nh5 {[%emt 0:00:29]} 4. Bd2 {[%emt 0:
00:24]} Nf6 {[%emt 0:01:14]} 5. c4 {[%emt 0:00:06]} e6 {[%emt 0:00:05]} 6. Nc3
{[%emt 0:00:10]} Be7 {[%emt 0:00:58]} 7. e3 {[%emt 0:00:21]} O-O {[%emt 0:00:
11]} 8. Bd3 {[%emt 0:00:03]} dxc4 {[%emt 0:00:10]} 9. Bxc4 {[%emt 0:00:00]} c5
{[%emt 0:00:01]} 10. O-O {[%emt 0:00:37]} a6 {[%emt 0:00:10]} 11. dxc5 {
[%emt 0:01:00]} Bxc5 {[%emt 0:00:04]} 12. Qc2 {[%emt 0:00:20]} Qe7 {[%emt 0:01:
10]} 13. e4 {[%emt 0:02:40]} b5 {[%emt 0:03:18]} 14. Bd3 {[%emt 0:01:40]} e5 {
[%emt 0:00:27]} 15. a4 {[%emt 0:00:54]} b4 {[%emt 0:06:34]} 16. Nd5 {[%emt 0:
00:03]} Nxd5 {[%emt 0:00:01]} 17. exd5 {[%emt 0:00:00]} h6 {[%emt 0:00:27]} 18.
Nxe5 {[%emt 0:00:59]} Bb7 {[%emt 0:02:16]} 19. Rae1 {[%emt 0:00:45]} Rc8 {
[%emt 0:00:04]} 20. Bh7+ {[%emt 0:01:33]} Kh8 {[%emt 0:00:16]} 21. Ng6+ {
[%emt 0:00:16]} fxg6 {[%emt 0:00:00]} 22. Rxe7 {[%emt 0:00:03]} Bxe7 {[%emt 0:
00:24]} 23. Qxg6 {[%emt 0:00:58]} Bxd5 {[%emt 0:00:11]} 24. Qh5 {[%emt 0:00:34]
} Kxh7 {[%emt 0:00:14]} 25. Qf5+ {[%emt 0:00:18]} Kh8 {[%emt 0:00:07]} 26.
Qxc8+ {[%emt 0:00:03]} Bg8 {[%emt 0:00:08]} 27. Qb7 {[%emt 0:00:04]} 1-0

[Event "RUS-ch Rapid 2021"]
[Site "Sochi"]
[Date "2021.10.12"]
[Round "5.19"]
[White "Savchenko, Boris"]
[Black "Gutenev, Alexander"]
[Result "1/2-1/2"]
[ECO "B68"]
[WhiteElo "2535"]
[BlackElo "2455"]
[Annotator "ChessBase"]
[PlyCount "52"]
[EventDate "2021.10.12"]
[EventType "swiss"]
[EventCountry "RUS"]
[SourceTitle "playchess.com"]
[Source "ChessBase"]
[SourceQuality "1"]
[TimeControl "900+10"]

1. e4 {[%emt 0:00:08]} c5 {[%emt 0:00:00]} 2. Nf3 {[%emt 0:00:00]} Nc6 {
[%emt 0:00:05]} 3. d4 {[%emt 0:00:11]} cxd4 {[%emt 0:00:02]} 4. Nxd4 {[%emt 0:
00:00]} Nf6 {[%emt 0:00:02]} 5. Nc3 {[%emt 0:00:01]} d6 {[%emt 0:00:00]} 6. Bg5
{[%emt 0:00:07]} e6 {[%emt 0:00:09]} 7. Qd2 {[%emt 0:00:00]} a6 {[%emt 0:00:00]
} 8. O-O-O {[%emt 0:00:03]} Bd7 {[%emt 0:00:00]} 9. f4 {[%emt 0:00:03]} Be7 {
[%emt 0:00:00]} 10. Nb3 {[%emt 0:00:40]} b5 {[%emt 0:00:06]} 11. a3 {[%emt 0:
00:00]} Qb6 {[%emt 0:00:16]} 12. e5 {[%emt 0:00:55]} Ng4 {[%emt 0:01:09]} 13.
Bxe7 {[%emt 0:01:45]} Nxe7 {[%emt 0:00:05]} 14. Qxd6 {[%emt 0:01:26]} Bc6 {
[%emt 0:04:03]} 15. Rd2 {[%emt 0:04:31]} Nf2 {[%emt 0:01:04]} 16. Rg1 {[%emt 0:
02:35]} Nd3+ {[%emt 0:00:04]} 17. Bxd3 {[%emt 0:00:10]} Qxg1+ {[%emt 0:00:03]}
18. Rd1 {[%emt 0:00:04]} Qe3+ {[%emt 0:01:29]} 19. Kb1 {[%emt 0:00:03]} Rd8 {
[%emt 0:00:58]} 20. Qc7 {[%emt 0:00:00]} Rd7 {[%emt 0:00:41]} 21. Qb8+ {
[%emt 0:00:00]} Rd8 {[%emt 0:00:02]} 22. Qc7 {[%emt 0:00:10]} Rd7 {[%emt 0:02:
37]} 23. Qb8+ {[%emt 0:00:00]} Rd8 {[%emt 0:00:10]} 24. Qc7 {[%emt 0:00:00]}
Rd7 {[%emt 0:00:02]} 25. Qb8+ {[%emt 0:06:16]} Rd8 {[%emt 0:00:00]} 26. Qc7 {
[%emt 0:00:02]} Rd7 {[%emt 0:00:03]} 1/2-1/2